bitfinex-derivatives/quotes_BTCF0:USTF0_20250528
["timestamp","ask_amount","ask_price","bid_price","bid_amount"]
[1748399269170,0.63738657,108470.0,108460.0,0.37530648]
[1748399269457,0.63738657,108470.0,108460.0,0.83050807]
[1748399269656,0.63738657,108470.0,108460.0,0.89410807]
[1748399270174,0.64138657,108470.0,108460.0,0.89410807]
[1748399270356,0.64238657,108470.0,108460.0,0.89410807]
[1748399271568,0.64038657,108470.0,108460.0,0.89510807]
[1748399272461,1.08274498,108470.0,108460.0,0.26324067]
[1748399272657,1.14664498,108470.0,108460.0,0.20203611]
[1748399272964,1.17854498,108470.0,108460.0,0.17458065]
[1748399273159,1.17854498,108470.0,108460.0,0.20215611]
[1748399274452,0.87854498,108470.0,108460.0,0.20215611]
[1748399275460,0.75618657,108470.0,108460.0,0.20215611]
[1748399275660,0.87854498,108470.0,108460.0,0.20215611]
[1748399275866,0.87854498,108470.0,108460.0,0.20215552]
[1748399276070,0.87854498,108470.0,108460.0,0.38646292]
[1748399276362,0.87854498,108470.0,108460.0,0.20215552]
[1748399276566,0.87854498,108470.0,108460.0,0.38646292]
[1748399276861,0.67198657,108470.0,108460.0,0.84456286]
[1748399277068,0.70328657,108470.0,108460.0,0.88574807]
[1748399277258,0.70328657,108470.0,108460.0,0.92574807]
[1748399278466,0.70328657,108470.0,108460.0,0.47886807]
[1748399278680,0.82564498,108470.0,108460.0,0.16915672]
[1748399278862,0.82564498,108470.0,108460.0,0.16903672]
[1748399279165,0.82564498,108470.0,108460.0,0.20135672]
[1748399279487,0.83564498,108470.0,108460.0,0.20135672]
[1748399282369,0.71328657,108470.0,108460.0,0.20135672]
[1748399282563,0.83564498,108470.0,108460.0,0.20135672]
[1748399283773,0.83564498,108470.0,108460.0,0.16917389]
[1748399283774,1.20564498,108470.0,108460.0,0.16917389]
[1748399283977,1.20564498,108470.0,108460.0,0.14159938]
[1748399284172,1.08328657,108470.0,108460.0,0.14171938]
[1748399284366,1.20564498,108470.0,108460.0,0.14171938]
[1748399284564,1.04564498,108470.0,108460.0,0.14171938]
[1748399285575,0.92328657,108470.0,108460.0,0.14171938]
[1748399285872,1.04564498,108470.0,108460.0,0.37652224]
[1748399286085,0.70328657,108470.0,108460.0,0.54038127]
[1748399286296,0.00313817,108470.0,108460.0,0.98388581]
[1748399286592,0.00313817,108470.0,108460.0,1.48733997]
[1748399286793,0.00313817,108470.0,108460.0,1.59486723]
[1748399286794,0.18742857,108470.0,108460.0,1.59486723]
[1748399286994,0.18742857,108470.0,108460.0,1.68706323]
[1748399287656,0.18742857,108470.0,108460.0,1.59486723]
[1748399287877,0.18742857,108470.0,108460.0,1.59485175]
[1748399289065,0.18742857,108470.0,108460.0,1.60884514]
[1748399289568,0.00313817,108470.0,108460.0,1.5150674]
[1748399290167,0.00313817,108470.0,108460.0,1.56754514]
[1748399290575,0.00313817,108470.0,108460.0,1.4737674]
[1748399290767,0.00313817,108470.0,108460.0,1.9191274]
[1748399293576,0.6696942,108490.0,108480.0,0.30663181]
[1748399293787,0.7021942,108490.0,108480.0,1.14380308]
[1748399293970,0.7021942,108490.0,108480.0,1.23870308]
[1748399294361,0.2628274,108490.0,108480.0,1.44870308]
[1748399294771,0.2638274,108490.0,108480.0,1.44870308]
[1748399295372,0.2648274,108490.0,108480.0,1.44970308]
[1748399297176,0.2323274,108490.0,108480.0,1.44970308]
[1748399297363,0.2323274,108490.0,108480.0,1.44902308]
[1748399297678,0.2627274,108490.0,108480.0,1.44902308]
[1748399297974,0.2929274,108490.0,108480.0,1.44902308]
[1748399298289,0.2929274,108490.0,108480.0,1.32666467]
[1748399300073,0.77608581,108490.0,108480.0,1.35389094]
[1748399300282,0.80858581,108490.0,108480.0,1.18389094]
[1748399300663,0.80858581,108490.0,108480.0,1.18401094]
[1748399301397,0.80858581,108490.0,108480.0,0.34542]
[1748399301584,1.13858581,108490.0,108480.0,0.78934]
[1748399301882,1.13858581,108490.0,108480.0,0.78922]
[1748399302066,1.13858581,108490.0,108480.0,0.78934]
[1748399302472,0.81858581,108490.0,108480.0,0.9736134]
[1748399302770,1.11858581,108490.0,108480.0,0.78934]
[1748399303779,1.11858581,108490.0,108480.0,0.9736134]
[1748399304179,0.81858581,108490.0,108480.0,0.9736134]
[1748399304375,0.81858581,108490.0,108480.0,0.8360134]
[1748399306872,0.6537274,108490.0,108480.0,0.8760134]
[1748399307171,0.5774633,108490.0,108480.0,0.8760134]
[1748399307378,0.5470633,108490.0,108480.0,0.8760134]
[1748399307680,0.5781633,108490.0,108480.0,0.8760134]
[1748399308181,0.5781633,108490.0,108480.0,0.99837181]
[1748399308684,0.73112171,108490.0,108480.0,0.8760134]
[1748399308880,0.73112171,108490.0,108480.0,0.8758934]
[1748399309077,0.6087633,108490.0,108480.0,0.8758934]
[1748399309592,0.6087633,108490.0,108480.0,0.8760134]
[1748399313981,0.6087633,108490.0,108480.0,0.8742534]
[1748399314184,0.6406633,108490.0,108480.0,0.8742534]
[1748399318583,0.76302171,108490.0,108480.0,0.9506534]
[1748399318783,0.76302171,108490.0,108480.0,0.9505334]
[1748399319087,0.76302171,108490.0,108480.0,0.9506534]
[1748399319287,0.76302171,108490.0,108480.0,0.9839534]
[1748399320177,0.76302171,108490.0,108480.0,0.9439534]
[1748399320488,0.6406633,108490.0,108480.0,0.9439534]
[1748399321584,0.6406633,108490.0,108480.0,0.9433134]
[1748399322079,0.76302171,108490.0,108480.0,0.17542]
[1748399322279,1.12302171,108490.0,108480.0,0.1753]
[1748399323080,1.12302171,108490.0,108480.0,0.17542]
[1748399323795,0.76302171,108490.0,108480.0,0.17542]
[1748399323991,0.76302171,108490.0,108480.0,0.20572]
[1748399324682,0.90302171,108490.0,108480.0,0.14242]
[1748399324991,1.14302171,108490.0,108480.0,0.14242]
[1748399327400,0.1842734,108480.0,108470.0,0.00013817]
[1748399327604,1.20519022,108480.0,108470.0,0.03013817]
[1748399328598,1.20619022,108480.0,108470.0,0.03225817]
[1748399328798,1.64707022,108480.0,108470.0,0.03225817]
[1748399329094,1.64807022,108480.0,108470.0,0.03425817]
[1748399330094,1.52571181,108480.0,108470.0,0.03425817]
[1748399330290,1.64807022,108480.0,108470.0,0.03425817]
[1748399334504,1.20719022,108480.0,108470.0,0.03425817]
[1748399334691,1.64703022,108480.0,108470.0,0.06615817]
[1748399337520,0.002,108480.0,108470.0,1.17224698]
[1748399337713,0.002,108480.0,108470.0,1.56714698]
[1748399338701,0.1862734,108480.0,108470.0,1.56714698]
[1748399340708,0.1862734,108480.0,108470.0,1.49114565]
[1748399340904,0.1862734,108480.0,108470.0,1.51174845]
[1748399341111,0.002,108480.0,108470.0,1.82291661]
[1748399341410,0.1862734,108480.0,108470.0,1.82291563]
[1748399344602,0.1862734,108480.0,108470.0,1.73072763]
[1748399345702,0.002,108480.0,108470.0,1.89944312]
[1748399345901,0.002,108480.0,108470.0,1.95447502]
[1748399346107,0.002,108480.0,108470.0,1.83211661]
[1748399346292,0.04270304,108490.0,108480.0,0.1842734]
[1748399346611,0.04270304,108490.0,108480.0,1.4694736]
[1748399346799,0.04270304,108490.0,108480.0,1.5616536]
[1748399347201,0.22695944,108490.0,108480.0,1.5616536]
[1748399347603,0.22895944,108490.0,108480.0,1.5636536]
[1748399347997,0.04470304,108490.0,108480.0,1.5636536]
[1748399348199,0.22895944,108490.0,108480.0,1.5636536]
[1748399348602,0.22895944,108490.0,108480.0,1.51730277]
[1748399348899,0.22895944,108490.0,108480.0,1.50352258]
[1748399349411,0.22895944,108490.0,108480.0,1.54482258]
[1748399352004,0.22895944,108490.0,108480.0,1.55396783]
[1748399352306,0.04470304,108490.0,108480.0,1.55396783]
[1748399353407,0.00013817,108500.0,108490.0,0.1842564]
[1748399353608,0.00013817,108500.0,108490.0,1.79463864]
[1748399354802,0.00013817,108500.0,108490.0,1.79563864]
[1748399355304,0.00013817,108500.0,108490.0,1.83693864]
[1748399355714,0.00013817,108500.0,108490.0,1.83793864]
[1748399359910,0.00013817,108500.0,108490.0,1.65368224]
[1748399360111,0.00013817,108500.0,108490.0,1.83793864]
[1748399360901,0.00013817,108500.0,108490.0,1.89799849]
[1748399361110,0.00013817,108500.0,108490.0,1.99177623]
[1748399361715,0.00013817,108500.0,108490.0,3.4920666]
[1748399361911,0.00013817,108500.0,108490.0,3.4455451]
[1748399362103,0.00013817,108500.0,108490.0,3.35176736]
[1748399362313,0.10949142,108520.0,108490.0,3.35176736]
[1748399362314,0.04459142,108520.0,108510.0,0.1842225]
[1748399362615,0.04459142,108520.0,108510.0,2.14549932]
[1748399362918,0.04459142,108520.0,108510.0,2.36931378]
[1748399364108,0.04559142,108520.0,108510.0,2.3848086]
[1748399364924,0.04559142,108520.0,108510.0,2.3868086]
[1748399365422,0.04559142,108520.0,108510.0,2.3864086]
[1748399367213,0.04559142,108520.0,108510.0,3.8864086]
[1748399367709,0.04559142,108520.0,108510.0,3.7942566]
[1748399368112,0.04559142,108520.0,108510.0,3.84074124]
[1748399368523,0.04559142,108520.0,108510.0,3.8407514]
[1748399369509,0.04559142,108520.0,108510.0,3.7942566]
[1748399369922,0.04559142,108520.0,108510.0,3.6100341]
[1748399370124,0.04559142,108520.0,108510.0,3.7942566]
[1748399370517,0.04559142,108520.0,108510.0,3.84074301]
[1748399370715,0.04559142,108520.0,108510.0,3.7942566]
[1748399371227,0.04559142,108520.0,108510.0,3.84074301]
[1748399373131,0.04559142,108520.0,108510.0,3.88204301]
[1748399374533,0.04559142,108520.0,108510.0,3.8355566]
[1748399374725,0.04559142,108520.0,108510.0,3.88204301]
[1748399375830,0.04559142,108520.0,108510.0,3.90976476]
[1748399376444,0.04559142,108520.0,108510.0,3.90936476]
[1748399376933,0.04559142,108520.0,108510.0,3.75679994]
[1748399377137,0.00152107,108530.0,108520.0,0.1842056]
[1748399377336,0.00152107,108530.0,108520.0,1.26256401]
[1748399377337,0.03172107,108530.0,108520.0,1.26256401]
[1748399377744,0.03172107,108530.0,108520.0,1.33104351]
[1748399377944,0.06442107,108530.0,108520.0,1.33104351]
[1748399378434,0.06442107,108530.0,108520.0,1.33204351]
[1748399379034,0.06442107,108530.0,108520.0,1.37334351]
[1748399379737,0.06442107,108530.0,108520.0,1.37434351]
[1748399386966,0.60940977,108530.0,108520.0,0.5704795]
[1748399387170,1.91569218,108530.0,108520.0,0.16479883]
[1748399387466,1.91569218,108530.0,108510.0,0.13685276]
[1748399387467,0.1842226,108510.0,108500.0,0.00013817]
[1748399387665,1.02818101,108510.0,108500.0,0.00013817]
[1748399387863,1.02818101,108510.0,108500.0,0.13013817]
[1748399387864,1.5779826,108510.0,108500.0,0.13013817]
[1748399388159,1.3479826,108510.0,108500.0,0.31437777]
[1748399388453,1.3479826,108510.0,108500.0,0.13025817]
[1748399388651,1.3479826,108510.0,108500.0,0.31437777]
[1748399388832,1.3489826,108510.0,108500.0,0.31449777]
[1748399389428,1.3489826,108510.0,108500.0,0.31549777]
[1748399389429,1.6279826,108510.0,108500.0,0.31549777]
[1748399389642,1.6309826,108510.0,108500.0,0.31549777]
[1748399390240,1.6319826,108510.0,108500.0,0.31649777]
[1748399390651,1.6329826,108510.0,108500.0,0.31649777]
[1748399392641,1.6329826,108510.0,108500.0,0.33704789]
[1748399393253,1.3829826,108510.0,108500.0,0.33704789]
[1748399393553,1.50534101,108510.0,108500.0,0.33704789]
[1748399393940,1.3829826,108510.0,108500.0,0.33704789]
[1748399394339,1.1029826,108510.0,108500.0,0.33704789]
[1748399394546,1.0108226,108510.0,108500.0,0.33704789]
[1748399395557,1.0108226,108510.0,108500.0,0.33703695]
[1748399395748,1.0108226,108510.0,108500.0,0.37023695]
[1748399397057,1.0108226,108510.0,108500.0,0.18239735]
[1748399397253,1.0108226,108510.0,108500.0,0.24239735]
[1748399398144,1.0108226,108510.0,108500.0,0.27579735]
[1748399398843,1.0108226,108510.0,108500.0,0.27578449]
[1748399399245,1.0169426,108510.0,108500.0,0.27578449]
[1748399399450,0.9108226,108510.0,108500.0,0.27578449]
[1748399399644,0.9107226,108510.0,108500.0,0.4081429]
[1748399399847,0.9106226,108510.0,108500.0,0.4081429]
[1748399400047,0.9106226,108510.0,108500.0,0.4081417]
[1748399400251,0.5498226,108510.0,108500.0,0.4081417]
[1748399400854,0.5489226,108510.0,108500.0,0.4071417]
[1748399401171,0.68154283,108510.0,108500.0,0.15924512]
[1748399401352,1.03944283,108510.0,108500.0,0.34236472]
[1748399401654,1.42044283,108510.0,108500.0,0.34248472]
[1748399402647,1.29808442,108510.0,108500.0,0.34248472]
[1748399402865,1.41944283,108510.0,108500.0,0.15824512]
[1748399403066,1.41944283,108510.0,108500.0,0.08164512]
[1748399403264,1.41944283,108510.0,108500.0,0.06112]
[1748399404359,1.51160283,108510.0,108500.0,0.06112]
[1748399405355,1.94860283,108510.0,108500.0,0.06112]
[1748399405557,2.07096124,108510.0,108500.0,0.06112]
[1748399405770,2.32096124,108510.0,108500.0,0.06112]
[1748399406078,1.38924442,108510.0,108500.0,0.06112]
[1748399406289,1.29528442,108510.0,108500.0,0.2453596]
[1748399406464,1.41764283,108510.0,108500.0,0.128]
[1748399406656,1.41764283,108510.0,108500.0,0.12812]
[1748399407164,1.41764283,108510.0,108500.0,0.3445596]
[1748399407360,1.41764283,108510.0,108500.0,0.16032]
[1748399408067,1.55764283,108510.0,108500.0,0.16032]
[1748399408853,1.02212442,108510.0,108500.0,0.81691801]
[1748399409055,1.02212442,108510.0,108500.0,0.48744349]
[1748399409254,1.02292442,108510.0,108500.0,0.48744349]
[1748399409455,1.02292442,108510.0,108500.0,0.36508508]
[1748399409668,1.14528283,108510.0,108500.0,0.18084548]
[1748399409859,1.14538283,108510.0,108500.0,0.18084548]
[1748399410062,1.03934283,108510.0,108500.0,0.18084548]
[1748399410267,1.57396124,108510.0,108500.0,0.05344548]
[1748399410483,1.82396124,108510.0,108500.0,0.07]
[1748399411054,1.99464283,108510.0,108500.0,0.1047]
[1748399411361,1.99464283,108510.0,108500.0,0.1374]
[1748399411564,1.99464283,108510.0,108500.0,0.13752]
[1748399411858,1.99464283,108510.0,108500.0,0.15804548]
[1748399412455,1.45160283,108510.0,108500.0,0.15804548]
[1748399412652,1.55764283,108510.0,108500.0,0.15804548]
[1748399413452,1.55764283,108510.0,108500.0,0.19044548]
[1748399413654,1.46548283,108510.0,108500.0,0.19044548]
[1748399414055,1.46552283,108510.0,108500.0,0.19044548]
[1748399415361,1.46552283,108510.0,108500.0,0.04521926]
[1748399415558,1.35944283,108510.0,108500.0,0.04521926]
[1748399415861,1.46552283,108510.0,108500.0,0.04521926]
[1748399416954,1.46542283,108510.0,108500.0,0.04521926]
[1748399417155,1.46532283,108510.0,108500.0,0.04521926]
[1748399417669,1.23688442,108510.0,108500.0,0.0727181]
[1748399417869,1.34296442,108510.0,108500.0,0.0727181]
[1748399418461,1.34296442,108510.0,108500.0,0.1390181]
[1748399419167,1.23608442,108510.0,108500.0,0.3232577]
[1748399419491,0.1852226,108510.0,108500.0,1.24999571]
[1748399419672,0.1852226,108510.0,108500.0,1.61079571]
[1748399420563,0.1852226,108510.0,108500.0,1.24999571]
[1748399422270,0.1852226,108510.0,108500.0,1.19511727]
[1748399423175,0.66838101,108510.0,108500.0,0.11151926]
[1748399423489,0.66838101,108510.0,108500.0,0.15275006]
[1748399423490,0.74268101,108510.0,108500.0,0.15275006]
[1748399423676,0.74268101,108510.0,108500.0,0.15287006]
[1748399423869,0.70268101,108510.0,108500.0,0.15275006]
[1748399424072,1.04268101,108510.0,108500.0,0.15275006]
[1748399424272,1.04268101,108510.0,108500.0,0.15287006]
[1748399424675,1.06268101,108510.0,108500.0,0.15287006]
[1748399425263,1.06268101,108510.0,108500.0,0.18035891]
[1748399428674,0.6003226,108510.0,108500.0,0.36459851]
[1748399428869,0.5660226,108510.0,108500.0,0.36459851]
[1748399429172,0.5983226,108510.0,108500.0,0.36459851]
[1748399429570,1.05068101,108510.0,108500.0,0.18035891]
[1748399430883,1.05268101,108510.0,108500.0,0.18123891]
[1748399431071,0.5600226,108510.0,108500.0,0.48895692]
[1748399431780,0.5600226,108510.0,108500.0,0.36659851]
[1748399433278,0.5600226,108510.0,108500.0,0.18235891]
[1748399433573,0.68238101,108510.0,108500.0,0.18235891]
[1748399433772,0.5600226,108510.0,108500.0,0.33910966]
[1748399433982,0.5600226,108510.0,108500.0,0.33898966]
[1748399434181,0.99297942,108510.0,108500.0,0.05290036]
[1748399434396,1.53117871,108510.0,108490.0,4e-08]
[1748399434614,0.1842736,108480.0,108470.0,0.6319704]
[1748399434879,0.9058736,108480.0,108470.0,0.88432881]
[1748399435077,0.9058736,108480.0,108470.0,0.88444881]
[1748399435685,0.9068736,108480.0,108470.0,0.88644881]
[1748399436097,0.5460736,108480.0,108470.0,0.88644881]
[1748399437109,0.1852736,108480.0,108470.0,1.15956881]
[1748399437308,0.00013817,108490.0,108480.0,0.1842736]
[1748399437509,0.4529233,108500.0,108490.0,0.1842566]
[1748399437510,0.1842467,108500.0,108490.0,0.1842566]
[1748399437799,0.3224126,108510.0,108500.0,0.1842396]
[1748399438007,0.3224126,108510.0,108500.0,0.83269801]
[1748399438909,0.0013829,108530.0,108520.0,0.1842057]
[1748399439104,0.20947886,108540.0,108530.0,0.1841887]
[1748399439295,0.20947886,108540.0,108530.0,1.21607592]
[1748399439492,0.14788086,108540.0,108530.0,1.21607592]
[1748399439816,0.14788086,108540.0,108530.0,2.35341192]
[1748399440307,0.14788086,108540.0,108530.0,2.89833192]
[1748399440592,0.14788086,108540.0,108530.0,2.80643592]
[1748399440774,0.14788086,108540.0,108530.0,2.80755592]
[1748399440775,0.14888086,108540.0,108530.0,2.80755592]
[1748399441591,0.14888086,108540.0,108530.0,2.80855592]
[1748399441979,0.14888086,108540.0,108530.0,2.81983912]
[1748399442586,0.14888086,108540.0,108530.0,2.79781031]
[1748399444281,0.14888086,108540.0,108530.0,2.81165432]
[1748399444885,0.14888086,108540.0,108530.0,2.86658313]
[1748399446187,0.33305256,108540.0,108530.0,2.86658313]
[1748399446691,0.33305256,108540.0,108530.0,2.81089432]
[1748399447084,0.14888086,108540.0,108530.0,2.81089432]
[1748399447279,0.33305256,108540.0,108530.0,2.81089432]
[1748399447481,0.14888086,108540.0,108530.0,2.81089432]
[1748399447685,0.33305256,108540.0,108530.0,2.81089432]
[1748399447879,0.14888086,108540.0,108530.0,2.81089432]
[1748399449495,0.14888086,108540.0,108530.0,2.26649432]
[1748399449699,0.14888086,108540.0,108530.0,2.81037432]
[1748399450089,0.14888086,108540.0,108530.0,2.85167432]
[1748399450795,0.00342143,108550.0,108530.0,2.94381032]
[1748399450983,0.00342143,108550.0,108540.0,0.77301331]
[1748399451186,0.00342143,108550.0,108540.0,1.27301331]
[1748399451489,0.00342143,108550.0,108540.0,1.1393717]
[1748399451987,0.00342143,108550.0,108540.0,1.27301331]
[1748399454184,0.00342143,108550.0,108540.0,1.31394296]
[1748399455992,0.00342143,108550.0,108540.0,1.35524296]
[1748399460989,0.00342143,108550.0,108540.0,1.35624296]
[1748399461189,0.00342143,108550.0,108540.0,1.35824296]
[1748399461391,0.00342143,108550.0,108540.0,1.37224212]
[1748399461693,0.00342143,108550.0,108540.0,1.91552212]
[1748399461889,0.00342143,108550.0,108540.0,2.02620249]
[1748399465511,0.00342143,108550.0,108540.0,1.78200051]
[1748399465695,0.06502143,108550.0,108540.0,1.9041615]
[1748399465895,0.06502143,108550.0,108540.0,1.9042815]
[1748399466200,0.06502143,108550.0,108540.0,2.02636249]
[1748399466399,0.06502143,108550.0,108540.0,2.02624249]
[1748399466592,0.06502143,108550.0,108540.0,1.84927269]
[1748399466797,0.06502143,108550.0,108540.0,1.91774269]
[1748399466998,0.06502143,108550.0,108540.0,2.03990368]
[1748399467199,0.06502143,108550.0,108540.0,1.97143368]
[1748399467806,0.06502143,108550.0,108540.0,2.03990368]
[1748399468199,0.06502143,108550.0,108540.0,1.60306368]
[1748399468402,0.24917623,108550.0,108540.0,0.94515269]
[1748399468597,0.24917623,108550.0,108540.0,1.48795269]
[1748399468800,0.09542143,108550.0,108540.0,1.48787269]
[1748399469001,0.09542143,108550.0,108540.0,1.54283851]
[1748399469204,0.09542143,108550.0,108540.0,1.54295851]
[1748399469706,0.09542143,108550.0,108540.0,1.48799269]
[1748399470707,0.09542143,108550.0,108540.0,1.3658317]
[1748399470901,0.09542143,108550.0,108540.0,1.97095368]
[1748399471103,0.00342143,108550.0,108540.0,2.01759883]
[1748399471302,0.00342143,108550.0,108540.0,2.08631494]
[1748399471695,0.00342143,108550.0,108540.0,2.11378304]
[1748399472408,0.001,108560.0,108550.0,0.1841549]
[1748399472700,0.001,108560.0,108550.0,1.27013089]
[1748399473101,0.001,108560.0,108550.0,1.27012002]
[1748399473501,0.002,108560.0,108550.0,1.20141589]
[1748399473696,0.002,108560.0,108550.0,1.24271589]
[1748399473901,0.002,108560.0,108550.0,1.1205549]
[1748399474220,0.002,108560.0,108550.0,1.859635]
[1748399474221,0.066,108560.0,108550.0,1.859635]
[1748399474504,0.066,108560.0,108550.0,1.81300054]
[1748399476114,0.066,108560.0,108550.0,0.75525955]
[1748399476329,0.73309889,108560.0,108550.0,1.25427454]
[1748399476523,0.6109379,108560.0,108550.0,1.25439454]
[1748399476999,0.6109379,108560.0,108550.0,1.37655553]
[1748399477905,0.6109379,108560.0,108550.0,1.25439454]
[1748399478307,0.6109379,108560.0,108550.0,1.25451454]
[1748399478817,0.066,108560.0,108550.0,1.74884197]
[1748399479003,0.066,108560.0,108550.0,1.42074197]
[1748399479499,0.002,108560.0,108550.0,1.72658223]
[1748399479698,0.002,108560.0,108550.0,1.83658688]
[1748399479900,0.002,108560.0,108550.0,1.76788223]
[1748399480104,0.002,108560.0,108550.0,1.83658688]
[1748399481302,0.002,108560.0,108550.0,1.8832389]
[1748399481814,0.002,108560.0,108550.0,1.83658688]
[1748399482502,0.002,108560.0,108550.0,1.88323484]
[1748399483506,0.002,108560.0,108550.0,1.9107144]
[1748399484798,0.002,108560.0,108550.0,1.81453019]
[1748399485213,0.002,108560.0,108550.0,1.9107144]
[1748399485707,0.002,108560.0,108550.0,1.77706697]
[1748399485908,0.002,108560.0,108550.0,1.81653019]
[1748399486613,0.001,108560.0,108550.0,1.81853019]
[1748399487006,0.001,108560.0,108550.0,1.78106697]
[1748399487202,0.001,108560.0,108550.0,1.81853019]
[1748399487906,0.001,108560.0,108550.0,1.9147144]
[1748399489812,0.001,108560.0,108550.0,2.00816241]
[1748399490718,0.001,108560.0,108550.0,2.00842885]
[1748399491617,0.001,108560.0,108550.0,1.91498084]
[1748399491824,0.001,108560.0,108550.0,1.81879663]
[1748399492319,0.001,108560.0,108550.0,1.91498084]
[1748399493411,0.001,108560.0,108550.0,1.81879663]
[1748399494418,1e-07,108560.0,108550.0,1.97419729]
[1748399494638,0.00013817,108570.0,108560.0,0.1841379]
[1748399494823,0.00013817,108570.0,108560.0,1.52234117]
[1748399495409,0.00013817,108570.0,108560.0,1.42862017]
[1748399496725,0.00013817,108570.0,108560.0,1.5622676]
[1748399496924,0.00013817,108570.0,108560.0,1.5662676]
[1748399497113,0.00013817,108570.0,108560.0,1.47012849]
[1748399497316,0.00013817,108570.0,108560.0,1.53875696]
[1748399497924,0.00013817,108570.0,108560.0,1.39357892]
[1748399499438,0.00013817,108570.0,108560.0,1.51569574]
[1748399500219,0.00013817,108570.0,108560.0,1.20283363]
[1748399500421,0.00013817,108570.0,108560.0,1.41867145]
[1748399500620,0.00013817,108570.0,108560.0,1.51481056]
[1748399501633,0.00013817,108570.0,108560.0,1.63692738]
[1748399501835,0.00013817,108570.0,108560.0,1.51570487]
[1748399502638,0.00013817,108570.0,108560.0,1.39358805]
[1748399503233,0.0029,108580.0,108570.0,0.184121]
[1748399503429,0.0029,108580.0,108570.0,1.94593224]
[1748399503626,0.0029,108580.0,108570.0,2.08654897]
[1748399503817,0.0029,108580.0,108570.0,2.01791137]
[1748399504025,0.1656,108600.0,108590.0,0.184087]
[1748399504225,0.1667,108600.0,108590.0,1.76454154]
[1748399504524,0.1667,108600.0,108590.0,1.41434382]
[1748399504725,0.1667,108600.0,108590.0,1.47851901]
[1748399505335,0.1667,108600.0,108590.0,1.46920672]
[1748399505528,0.1677,108600.0,108590.0,1.46920672]
[1748399506135,0.1697,108600.0,108590.0,1.83000672]
[1748399506330,0.1697,108600.0,108590.0,1.28736672]
[1748399506635,0.1697,108600.0,108590.0,1.46916672]
[1748399506960,0.84668692,108600.0,108590.0,0.23988722]
[1748399507148,0.84668692,108600.0,108590.0,0.90173319]
[1748399507346,0.84668692,108600.0,108590.0,0.90161319]
[1748399507528,0.84668692,108600.0,108590.0,0.90173319]
[1748399507925,0.84668692,108600.0,108590.0,0.35913319]
[1748399508144,0.7245701,108600.0,108590.0,0.90173319]
[1748399508328,0.7245701,108600.0,108590.0,0.46497319]
[1748399508524,0.7245701,108600.0,108590.0,0.46509319]
[1748399509040,0.7145701,108600.0,108590.0,0.46509319]
[1748399509738,1.0745701,108600.0,108590.0,0.46509319]
[1748399510532,0.7145701,108600.0,108590.0,0.46509319]
[1748399510741,0.7145701,108600.0,108590.0,0.35913319]
[1748399510947,0.7145701,108600.0,108590.0,1.02385001]
[1748399511137,0.5305,108600.0,108590.0,1.08535001]
[1748399511332,0.5305,108600.0,108590.0,1.04423104]
[1748399511641,0.1697,108600.0,108590.0,1.22423104]
[1748399511835,0.1697,108600.0,108590.0,1.28643104]
[1748399513931,0.1697,108600.0,108590.0,1.34129394]
[1748399516033,0.1365,108600.0,108590.0,1.70209394]
[1748399516437,0.104,108600.0,108590.0,1.70209394]
[1748399517233,0.104,108600.0,108590.0,1.87927724]
[1748399517446,0.104,108600.0,108590.0,1.75716042]
[1748399518146,0.104,108600.0,108590.0,1.90043859]
[1748399518353,0.104,108600.0,108590.0,1.83180921]
[1748399518741,0.104,108600.0,108590.0,1.7356701]
[1748399518949,0.101,108600.0,108590.0,1.85778692]
[1748399519140,0.101,108600.0,108590.0,1.90678697]
[1748399519343,0.101,108600.0,108590.0,2.0224795]
[1748399519646,0.101,108600.0,108590.0,1.92634039]
[1748399520046,0.101,108600.0,108590.0,1.92633002]
[1748399521241,0.101,108600.0,108590.0,1.87921735]
[1748399521443,0.101,108600.0,108590.0,1.48969002]
[1748399521645,0.101,108600.0,108590.0,1.87909735]
[1748399523662,0.101,108600.0,108590.0,1.75530329]
[1748399524755,0.101,108600.0,108590.0,1.76889432]
[1748399525862,0.101,108600.0,108590.0,0.98218068]
[1748399526160,0.101,108600.0,108590.0,1.6467375]
[1748399526358,0.1659,108600.0,108590.0,1.6466175]
[1748399526553,0.1659,108600.0,108590.0,1.6467375]
[1748399526956,0.1659,108600.0,108590.0,1.6054375]
[1748399527560,0.101,108600.0,108590.0,1.6054375]
[1748399527964,0.101,108600.0,108590.0,1.72755432]
[1748399528561,0.101,108600.0,108590.0,1.6054375]
[1748399529357,0.1313,108600.0,108590.0,1.6054375]
[1748399529546,0.1313,108600.0,108590.0,1.1689575]
[1748399529747,0.1313,108600.0,108590.0,1.6053975]
[1748399531848,0.101,108600.0,108590.0,1.6053975]
[1748399532260,0.101,108600.0,108590.0,1.65251476]
[1748399533051,0.101,108600.0,108590.0,1.70606209]
[1748399533560,0.101,108600.0,108590.0,1.8022012]
[1748399534156,0.101,108600.0,108590.0,1.68008438]
[1748399534549,0.101,108600.0,108590.0,1.8022012]
[1748399534952,0.00203817,108610.0,108600.0,0.1840701]
[1748399535155,0.00203817,108610.0,108600.0,1.39071012]
[1748399536073,0.00238206,108620.0,108600.0,1.38598492]
[1748399536269,0.00238206,108620.0,108610.0,1.30241002]
[1748399536464,0.4274,108640.0,108630.0,0.1840193]
[1748399536657,0.00252936,108640.0,108630.0,1.6999174]
[1748399536873,0.00252936,108640.0,108630.0,1.91773422]
[1748399537566,0.00252936,108640.0,108630.0,1.97253598]
[1748399537779,0.00452936,108640.0,108630.0,1.97253598]
[1748399538178,0.00452936,108640.0,108630.0,1.85041916]
[1748399538685,0.03572936,108640.0,108630.0,1.85979802]
[1748399539181,0.03772936,108640.0,108630.0,1.85979802]
[1748399539389,0.03772936,108640.0,108630.0,1.7376812]
[1748399539579,0.03772936,108640.0,108630.0,1.85979802]
[1748399541879,0.03772936,108640.0,108630.0,1.90109802]
[1748399542185,0.03772936,108640.0,108630.0,0.61994304]
[1748399542186,0.22173206,108640.0,108630.0,0.61994304]
[1748399542412,0.22173206,108640.0,108630.0,0.28180213]
[1748399542413,1.09654888,108640.0,108630.0,0.28180213]
[1748399542697,1.12734888,108640.0,108630.0,0.24086128]
[1748399542891,1.12734888,108640.0,108630.0,0.26811501]
[1748399543085,1.12734888,108640.0,108630.0,0.26823501]
[1748399543392,1.12734888,108640.0,108630.0,0.26798557]
[1748399543773,1.12734888,108640.0,108630.0,0.45200527]
[1748399544792,1.12734888,108640.0,108630.0,0.49306612]
[1748399545382,1.12734888,108640.0,108630.0,0.33200527]
[1748399545581,1.12734888,108640.0,108630.0,0.37306612]
[1748399545888,1.12734888,108640.0,108630.0,0.37294612]
[1748399546082,1.12734888,108640.0,108630.0,0.37306612]
[1748399546290,1.21940088,108640.0,108630.0,0.37306612]
[1748399546479,1.12734888,108640.0,108630.0,0.37306612]
[1748399546795,1.21940088,108640.0,108630.0,0.37306612]
[1748399547492,1.12734888,108640.0,108630.0,0.37306612]
[1748399549486,1.12734888,108640.0,108630.0,0.18904642]